bitfinex/quotes_ETHUSD_20250815
["timestamp","ask_amount","ask_price","bid_price","bid_amount"]
[1755263342442,0.0012,4623.5,4623.4,6.51725704]
[1755263342639,0.0012,4623.5,4623.4,8.08755259]
[1755263343148,0.0012,4623.5,4623.4,3.96465259]
[1755263343432,0.0012,4623.5,4623.4,7.37265259]
[1755263343796,0.0012,4623.5,4623.4,3.09662794]
[1755263344003,0.0012,4623.5,4623.4,4.34171753]
[1755263344311,0.0012,4623.5,4623.4,6.98012794]
[1755263344723,0.0012,4623.5,4623.4,0.93371753]
[1755263345037,0.9401,4623.5,4623.4,4.34171753]
[1755263346553,0.9401,4623.5,4623.4,4.33971753]
[1755263346914,0.0012,4623.5,4623.4,4.33971753]
[1755263347110,0.4454,4623.5,4623.4,0.93371753]
[1755263347310,0.9042,4623.5,4623.4,0.93371753]
[1755263347516,3.06706363,4623.5,4623.4,0.93371753]
[1755263347755,1.42717972,4623.5,4623.4,4.33971753]
[1755263348652,0.9042,4623.5,4623.4,4.33971753]
[1755263349861,3.06710792,4623.5,4623.4,3.403]
[1755263350160,3.06710792,4623.5,4622.8,0.0008]
[1755263350161,2.16295719,4623.3,4622.8,0.0008]
[1755263350318,2.16333153,4622.5,4622.4,0.001]
[1755263350656,2.16333153,4622.5,4622.4,3.404]
[1755263351053,3.06633153,4622.5,4622.4,3.404]
[1755263351755,3.17433153,4622.5,4622.4,3.404]
[1755263353223,3.17433153,4622.5,4622.4,3.402]
[1755263353421,2.16344465,4622.3,4622.1,3.401]
[1755263353656,0.5522,4622.2,4622.1,3.401]
[1755263353959,0.903,4623.0,4622.1,3.401]
[1755263354123,0.108,4622.4,4622.1,3.401]
[1755263354327,0.4442,4623.4,4622.1,3.95746049]
[1755263354535,0.108,4622.6,4622.1,3.401]
[1755263354741,0.108,4622.6,4622.1,0.001]
[1755263354934,0.903,4622.5,4622.1,0.001]
[1755263355119,0.903,4622.5,4622.2,3.405]
[1755263355333,0.108,4622.3,4622.2,3.405]
[1755263355549,0.108,4622.3,4622.1,0.001]
[1755263355753,0.108,4622.3,4622.2,3.404]
[1755263356876,0.108,4622.5,4622.2,3.404]
[1755263357443,0.108,4622.9,4622.3,0.4623]
[1755263357638,0.108,4622.9,4622.2,3.512]
[1755263357964,0.108,4622.4,4622.2,3.404]
[1755263358165,0.5522,4622.4,4622.2,3.404]
[1755263358348,0.108,4622.4,4622.2,3.404]
[1755263358550,0.4588,4623.3,4622.2,3.96085965]
[1755263358750,0.108,4623.0,4622.2,3.96085965]
[1755263358956,0.108,4623.0,4622.4,2.27133672]
[1755263359155,0.108,4623.0,4622.5,3.402]
[1755263359472,0.108,4623.0,4622.5,5.56532227]
[1755263359675,0.108,4623.0,4622.5,4.24136523]
[1755263359879,0.108,4623.3,4622.7,0.108]
[1755263360852,0.0012,4623.5,4622.8,0.73233191]
[1755263361051,0.0012,4623.5,4622.9,2.16309808]
[1755263361280,0.0012,4623.5,4623.0,3.402]
[1755263361570,0.0012,4623.5,4623.1,2.2710148]
[1755263361768,0.0012,4623.5,4623.1,2.2718148]
[1755263362146,0.0012,4623.5,4623.1,0.1088]
[1755263362633,0.0012,4623.5,4623.1,2.27182193]
[1755263362797,0.0012,4623.5,4623.3,2.16292331]
[1755263362994,0.0012,4623.5,4623.1,0.0008]
[1755263363294,0.108,4623.3,4623.2,3.4]
[1755263363792,0.5522,4623.3,4623.1,0.0008]
[1755263363959,0.108,4623.3,4623.2,3.4]
[1755263364754,0.5522,4623.3,4623.2,3.4]
[1755263364958,0.5522,4623.3,4623.2,3.399]
[1755263364959,1.011,4623.3,4623.2,3.399]
[1755263365455,3.49145978,4623.3,4623.2,3.398]
[1755263365772,3.17395719,4623.3,4623.2,3.398]
[1755263366887,2.16300397,4623.2,4623.1,0.0008]
[1755263367097,3.06600397,4623.2,4623.1,3.3988]
[1755263367380,3.59982009,4623.2,4623.1,3.3988]
[1755263369380,3.59982009,4623.2,4623.1,0.0008]
[1755263369586,1.43681612,4623.2,4622.6,3.394]
[1755263369799,2.16315572,4622.9,4622.6,3.394]
[1755263369995,0.108,4622.7,4622.6,3.394]
[1755263370203,1.011,4622.7,4622.6,3.394]
[1755263371021,0.108,4622.7,4622.6,3.394]
[1755263371174,0.0012,4623.5,4622.6,3.394]
[1755263371376,0.108,4623.2,4622.6,5.55724707]
[1755263371610,0.108,4623.2,4622.7,0.02163237]
[1755263371930,0.0012,4623.5,4623.2,2.16298355]
[1755263372094,0.0012,4623.5,4623.3,3.394]
[1755263374023,0.0012,4623.5,4622.9,0.108]
[1755263374204,0.903,4623.4,4623.3,3.393]
[1755263374406,0.4442,4623.4,4623.3,3.393]
[1755263374727,0.1092,4623.5,4623.3,3.393]
[1755263376433,0.0012,4623.5,4623.4,2.64171041]
[1755263376650,0.0012,4623.5,4623.4,3.70988008]
[1755263376940,0.0012,4623.5,4623.4,3.81788008]
[1755263377598,0.0012,4623.5,4623.4,3.56948008]
[1755263377800,0.0012,4623.5,4623.4,3.09068008]
[1755263378024,0.0012,4623.5,4623.4,6.96148008]
[1755263378212,0.0004,4623.5,4623.4,7.20988008]
[1755263378815,0.0004,4623.5,4623.4,6.96148008]
[1755263379129,0.0004,4623.5,4623.4,6.48268008]
[1755263382197,0.0004,4623.5,4623.4,7.20988008]
[1755263382645,0.0004,4623.5,4623.4,6.48068008]
[1755263382846,0.0004,4623.5,4623.4,3.498]
[1755263383209,0.0004,4623.5,4623.4,3.39]
[1755263383403,0.0004,4623.5,4623.4,5.55291041]
[1755263384238,0.0004,4623.5,4623.4,3.39]
[1755263384543,0.0004,4623.5,4623.4,5.55291041]
[1755263385850,0.0004,4623.5,4623.4,7.06250032]
[1755263386549,0.0004,4623.5,4623.4,2.94530032]
[1755263386755,0.0004,4623.5,4623.4,5.55291041]
[1755263386942,0.0004,4623.5,4623.4,2.16291041]
[1755263387143,0.0004,4623.5,4623.4,5.55291041]
[1755263388042,0.0004,4623.5,4623.4,3.39]
[1755263388218,0.4553,4623.5,4623.4,3.39]
[1755263388719,0.0004,4623.5,4623.4,3.39]
[1755263389534,0.9169,4623.5,4623.4,3.39]
[1755263390063,0.0004,4623.5,4623.4,3.39]
[1755263391254,0.4553,4623.5,4623.2,0.108]
[1755263391456,0.9165,4623.4,4622.8,5.194]
[1755263391648,0.5629,4623.3,4622.9,3.39]
[1755263391964,0.9165,4623.2,4622.8,5.194]
[1755263392131,0.9165,4623.1,4623.0,3.39]
[1755263393259,0.9165,4623.1,4622.6,0.001]
[1755263393430,0.9165,4623.0,4622.7,3.39]
[1755263393755,0.108,4622.9,4622.7,3.39]
[1755263394132,0.108,4622.9,4622.8,0.001]
[1755263394454,0.4549,4623.0,4622.8,0.001]
[1755263394455,0.108,4623.0,4622.8,0.001]
[1755263394758,0.4549,4623.4,4622.8,0.02263191]
[1755263394920,0.5629,4623.2,4622.8,0.001]
[1755263395126,0.0004,4623.5,4622.8,0.001]
[1755263395356,0.1084,4623.5,4623.0,2.16309755]
[1755263395541,0.1084,4623.5,4623.1,3.39]
[1755263396067,0.0004,4623.5,4623.3,2.16295719]
[1755263396372,0.0004,4623.5,4623.4,3.39]
[1755263398530,0.0004,4623.5,4623.4,6.03171041]
[1755263398724,0.0004,4623.5,4623.4,6.88681952]
[1755263399269,0.0004,4623.5,4623.4,6.40801952]
[1755263399471,0.0004,4623.5,4623.2,0.108]
[1755263399674,0.0004,4623.5,4623.4,5.66091041]
[1755263399874,0.0004,4623.5,4623.4,2.27091041]
[1755263400259,0.4553,4623.5,4623.4,3.39]
[1755263400462,0.4553,4623.5,4622.8,0.001]
[1755263400463,0.55,4623.4,4622.8,0.001]
[1755263400757,0.9169,4623.5,4622.8,0.001]
[1755263400758,3.0,4623.1,4622.8,0.001]
[1755263400993,3.0,4623.1,4621.7,0.001]
[1755263400994,2.71314434,4622.9,4621.7,0.001]
[1755263401171,0.55,4622.8,4622.2,3.39]
[1755263401388,2.16342513,4622.3,4622.2,3.39]
[1755263401592,3.29626764,4622.3,4622.2,3.39]
[1755263401760,3.29626764,4622.3,4621.7,0.001]
[1755263401761,5.16347193,4622.2,4621.7,0.001]
[1755263401967,7.0959955,4622.2,4621.7,3.391]
[1755263402161,3.0,4622.1,4621.4,0.001]
[1755263402368,0.55,4621.8,4621.4,0.001]
[1755263402666,6.34006723,4621.7,4621.4,0.001]
[1755263402872,7.25656723,4621.7,4621.4,0.001]
[1755263403372,7.72156471,4621.7,4621.4,0.001]
[1755263404194,7.25656723,4621.7,4621.4,0.001]
[1755263404515,0.55,4621.4,4620.1,0.04]
[1755263404727,0.55,4621.4,4618.4,5.194]
[1755263404728,0.55,4621.0,4618.8,3.39]
[1755263404876,0.4549,4620.9,4619.2,3.39]
[1755263405212,0.4549,4620.9,4619.3,0.39088]
[1755263405213,0.4616,4620.8,4619.3,0.39088]
[1755263405394,3.4549,4620.7,4619.3,0.39088]
[1755263405728,0.4616,4620.8,4617.1,0.04]
[1755263405729,0.55,4620.5,4617.1,0.04]
[1755263405937,0.55,4620.3,4618.2,5.55731694]
[1755263406212,3.0,4620.5,4618.1,0.04]
[1755263406213,0.55,4620.1,4618.1,0.04]
[1755263406421,0.55,4619.8,4618.3,3.393]
[1755263407020,0.9504,4620.0,4618.5,0.4543]
[1755263407318,0.4538,4619.7,4618.7,3.393]
[1755263407517,0.55,4619.6,4618.7,3.393]
[1755263407668,1.0466,4619.6,4618.7,3.393]
[1755263407889,1.10044,4619.5,4618.7,3.393]
[1755263408297,2.16487703,4619.2,4618.7,3.393]
[1755263408538,0.9504,4619.4,4618.7,3.393]
[1755263408698,0.4538,4619.7,4619.0,2.16492639]
[1755263408892,0.4538,4620.4,4619.1,0.28214187]
[1755263409108,0.4538,4620.6,4619.1,0.04]
[1755263409431,0.4538,4621.1,4619.2,0.4543]
[1755263409637,0.4538,4621.8,4619.5,3.0]
[1755263409793,0.04,4621.9,4621.0,2.16400357]
[1755263409994,0.04,4621.9,4621.3,2.16387759]
[1755263410194,0.04,4621.9,4621.1,3.399]
[1755263410431,0.108,4621.5,4621.1,3.399]
[1755263410735,0.9504,4621.4,4620.9,3.4]
[1755263410936,0.108,4621.0,4620.9,5.56408059]
[1755263411134,0.04,4621.9,4620.9,3.95640806]
[1755263411296,0.108,4621.5,4620.9,3.4]
[1755263411503,0.108,4621.5,4621.0,3.4]
[1755263411746,0.108,4621.5,4621.0,3.4008]
[1755263411893,0.108,4621.2,4621.0,3.4008]
[1755263412094,0.4538,4621.1,4621.0,3.4008]
[1755263412333,0.9504,4621.1,4621.0,0.0008]
[1755263412704,3.11438692,4621.1,4621.0,0.0008]
[1755263412904,3.65301142,4621.1,4621.0,0.0008]
[1755263413193,1.4890245,4621.1,4621.0,0.0008]
[1755263413837,0.9504,4621.1,4621.0,0.0008]
[1755263414137,6.66438692,4621.1,4621.0,0.0008]
[1755263415319,13.70438692,4621.1,4621.0,0.0008]
[1755263415837,11.5404,4621.1,4621.0,0.0008]
[1755263416025,7.04,4621.1,4621.0,0.0008]
[1755263416334,7.148,4621.1,4621.0,0.0008]
[1755263417232,0.108,4621.1,4621.0,0.0008]
[1755263418244,0.002,4621.7,4621.0,0.4551]
[1755263418406,0.108,4621.6,4621.5,2.16379963]
[1755263418619,0.002,4621.7,4621.6,2.16375281]
[1755263418838,0.002,4621.7,4621.6,2.86745281]
[1755263419049,0.002,4621.7,4621.6,2.61805281]
[1755263419245,0.002,4621.7,4621.6,2.16375281]
[1755263419445,0.002,4621.7,4621.6,2.61805281]
[1755263419649,0.002,4621.7,4621.6,2.16375281]
[1755263419945,0.002,4621.7,4621.6,5.56675281]
[1755263420414,0.0012,4621.7,4621.6,5.56675281]
[1755263420610,0.0012,4621.7,4621.5,0.108]
[1755263420841,0.0012,4621.7,4621.6,5.56475281]
[1755263421346,0.0012,4621.7,4621.0,0.0008]
[1755263421347,2.16381364,4621.5,4621.0,0.0008]
[1755263421586,0.9504,4621.4,4621.0,0.0008]
[1755263421736,0.55,4621.3,4621.0,0.0008]
[1755263421904,2.71398692,4621.1,4621.0,0.0008]
[1755263422510,6.66438692,4621.1,4621.0,0.0008]
[1755263424316,2.71422109,4620.6,4620.5,0.001]
[1755263424512,9.3926432,4620.6,4620.5,0.001]
[1755263424823,10.80620889,4620.6,4620.5,0.001]
[1755263425418,10.80620889,4620.6,4620.5,1e-08]
[1755263425819,15.20828122,4620.6,4620.5,1e-08]
[1755263426149,15.00924172,4620.6,4620.5,1e-08]
[1755263426460,15.21031305,4620.6,4620.5,1e-08]
[1755263427117,16.3608991,4620.6,4620.5,1e-08]
[1755263427471,2.16431477,4620.4,4619.1,0.041]
[1755263427675,2.16485078,4619.3,4619.1,0.041]
[1755263427810,3.55,4619.5,4619.1,0.041]
[1755263428016,3.16867703,4619.2,4619.1,0.041]
[1755263428349,0.55,4619.2,4619.1,0.041]
[1755263428560,3.16867703,4619.2,4619.1,0.041]
[1755263428862,0.46381725,4619.8,4619.1,0.041]
[1755263429048,0.57944525,4620.7,4619.2,0.7037]
[1755263429350,2.16405935,4621.0,4619.3,1.11927]
[1755263429549,3.0,4621.2,4619.3,0.41557]
[1755263429727,0.91761725,4621.1,4619.4,0.4543]
[1755263429931,0.55,4620.6,4619.4,0.4543]
[1755263430225,2.16426793,4620.5,4619.4,0.4543]
[1755263430424,3.0,4620.4,4619.4,0.4543]
[1755263430624,0.46381725,4620.5,4619.1,0.041]
[1755263430825,3.0,4620.5,4619.2,0.4543]
[1755263431031,3.0,4620.5,4619.3,0.29096681]
[1755263431228,2.1643666,4620.3,4619.3,0.29096681]
[1755263431429,0.108,4619.6,4619.1,0.041]
[1755263431673,0.55,4619.7,4619.1,0.041]
[1755263431966,0.108,4619.3,4619.1,0.041]
[1755263433949,0.108,4619.3,4619.2,2.86857703]
[1755263434144,0.46432547,4620.7,4619.8,2.16455325]
[1755263434356,0.108,4620.2,4619.9,2.16454187]
[1755263434555,0.108,4620.2,4620.0,2.86815754]
[1755263434717,0.108,4620.6,4620.1,0.72534455]
[1755263434918,0.46632547,4621.6,4620.9,2.1640674]
[1755263435234,0.108,4621.2,4620.5,0.108]
[1755263435430,0.108,4621.2,4620.5,2.27222293]
[1755263435651,0.108,4621.2,4620.5,0.62203054]
[1755263435985,0.4538,4621.5,4620.4,2.16430703]
[1755263436265,0.46632547,4621.6,4620.1,5.58844737]
[1755263436266,0.444,4621.4,4620.1,3.424]
[1755263436435,0.46432547,4621.5,4620.2,0.02164408]
[1755263436644,0.108,4620.8,4620.2,0.51794408]
[1755263436848,0.108,4621.1,4620.2,2.16439658]
[1755263437161,0.446,4621.6,4620.3,0.55883966]
[1755263437162,0.108,4620.7,4620.3,0.55883966]
[1755263437347,0.444,4621.2,4620.1,3.424]
[1755263437546,0.108,4620.4,4619.7,0.108]
[1755263437747,0.108,4620.4,4620.0,2.16445861]
[1755263437951,0.108,4620.4,4619.7,0.108]
[1755263438278,0.108,4620.4,4619.8,0.42767]
[1755263438477,0.108,4620.4,4619.9,2.16450484]
[1755263439338,0.108,4620.4,4619.8,2.59225816]
[1755263439680,0.108,4620.4,4619.9,2.16453076]
[1755263440036,0.108,4620.4,4619.8,0.42767]
[1755263440232,0.108,4620.4,4619.5,3.528]
[1755263440638,0.108,4620.4,4619.6,2.16468958]
[1755263440969,0.108,4620.4,4619.5,0.108]
[1755263441135,2.16471261,4619.6,4619.1,0.041]
[1755263441340,0.108,4619.2,4619.1,0.041]
[1755263442748,0.552,4619.2,4619.1,0.041]
[1755263443533,1.0376,4619.2,4619.1,0.041]
[1755263444032,0.552,4619.2,4619.1,0.041]
[1755263444262,6.20247703,4619.2,4619.1,0.041]
[1755263444510,8.05352951,4619.2,4619.1,0.041]
[1755263445169,4.40905248,4619.2,4619.1,0.041]
[1755263445399,3.94472701,4619.2,4619.1,0.041]
[1755263445568,3.552,4619.2,4619.1,0.041]
[1755263446287,4.01632547,4619.2,4619.1,0.041]
[1755263446687,3.57232547,4619.2,4619.1,0.041]
[1755263446871,0.108,4619.2,4619.1,0.041]
[1755263449198,0.444,4619.2,4619.1,0.041]
[1755263449402,3.0,4619.5,4619.1,0.041]
[1755263449707,0.60943009,4619.4,4619.1,0.041]
[1755263449914,1.53903009,4619.4,4619.1,0.041]
[1755263450095,0.60943009,4619.4,4619.1,0.041]
[1755263450277,1.04310361,4619.7,4619.1,0.041]
[1755263450278,0.55,4619.7,4619.1,0.041]
[1755263450610,0.46365836,4619.9,4619.1,0.041]
[1755263450765,3.46365836,4620.0,4619.1,0.041]
[1755263451115,0.46365836,4620.2,4619.2,0.4963]
[1755263451300,3.418,4620.5,4619.2,0.4963]
[1755263451458,0.9296,4620.4,4619.1,0.041]
[1755263451659,3.0,4620.2,4619.1,0.041]
[1755263451864,0.55,4619.6,4619.1,0.041]
[1755263452064,0.55,4619.4,4619.1,0.041]
[1755263452297,2.71487703,4619.2,4619.1,0.041]
[1755263452678,3.64447703,4619.2,4619.1,0.041]
[1755263453272,1.4796,4619.2,4619.1,0.041]
[1755263453725,3.64447703,4619.2,4619.1,0.041]
[1755263453880,4.42207845,4619.2,4619.1,0.041]
[1755263454069,1.22160142,4619.2,4619.1,0.041]
[1755263454271,2.16486431,4619.3,4619.1,0.041]
[1755263454470,2.60887703,4619.2,4619.1,0.041]
[1755263454707,3.09447703,4619.2,4619.1,0.041]
[1755263455309,6.09447703,4619.2,4619.1,0.041]
[1755263455481,8.03542753,4619.2,4619.1,0.041]
[1755263457515,7.57176917,4619.2,4619.1,0.041]
[1755263458215,4.37129214,4619.2,4619.1,0.041]
[1755263458416,7.57176917,4619.2,4619.1,0.041]
[1755263459195,7.67976917,4619.2,4619.1,0.041]
[1755263460308,12.06929214,4619.2,4619.1,0.041]
[1755263460516,17.64416917,4619.2,4619.1,0.041]
[1755263460724,8.07529214,4619.2,4619.1,0.041]
[1755263460899,7.148,4619.2,4619.1,0.041]
[1755263462751,7.1472,4619.2,4619.1,0.041]
[1755263463503,9.75607703,4619.2,4619.1,0.041]
[1755263463718,7.5912,4619.2,4619.1,0.041]
[1755263463922,10.9992,4619.2,4619.1,0.041]
[1755263464351,10.5552,4619.2,4619.1,0.041]
[1755263464569,0.55,4619.1,4616.9,0.11296652]
[1755263464862,2.1654427,4618.0,4616.4,2.16615285]
[1755263465002,3.854,4617.9,4616.3,0.2494]
[1755263465207,0.9296,4617.9,4616.1,0.04]
[1755263465529,3.409,4617.8,4616.5,0.4963]
[1755263465851,3.409,4617.8,4616.1,0.04]
[1755263465852,0.90184362,4617.8,4616.1,0.04]
[1755263466052,0.55,4617.6,4616.1,0.04]
[1755263466219,2.71563417,4617.6,4616.1,0.04]
[1755263466422,0.4342,4617.5,4616.4,2.16618944]
[1755263466754,0.55,4617.2,4616.1,0.04]
[1755263466962,0.8357578,4617.2,4616.1,0.04]
[1755263467128,3.92017257,4617.2,4616.1,0.04]
[1755263467484,10.33917257,4617.2,4616.1,0.04]
[1755263467645,10.80356332,4617.2,4616.1,0.04]
[1755263468153,7.38456332,4617.2,4616.1,0.04]
[1755263468355,10.80656332,4617.2,4616.1,0.04]
[1755263468748,7.38456332,4617.2,4616.1,0.04]
[1755263469079,10.80656332,4617.2,4616.1,0.04]
[1755263469866,11.00788777,4617.2,4616.1,0.04]
[1755263470038,11.78048143,4617.2,4616.1,0.04]
[1755263470389,11.58588777,4617.2,4616.1,0.041]
[1755263470601,12.09074855,4617.2,4616.1,0.041]
[1755263470736,14.25656332,4617.2,4616.1,0.041]
[1755263470931,12.09074855,4617.2,4616.1,0.041]
[1755263471177,14.83590496,4617.2,4616.1,0.041]
[1755263471335,15.38524349,4617.2,4616.1,0.041]
[1755263471734,15.38444349,4617.2,4616.1,0.041]
[1755263471937,2.16628395,4616.2,4616.1,0.041]
[1755263472290,8.59528395,4616.2,4616.1,0.041]
[1755263472773,9.97628977,4616.2,4616.1,0.041]
[1755263472968,9.51388395,4616.2,4616.1,0.041]
[1755263473268,9.02948395,4616.2,4616.1,0.041]
[1755263473471,9.31444175,4616.2,4616.1,0.041]
[1755263473692,4.4342,4617.1,4616.1,0.041]
[1755263473974,4.0,4617.1,4616.2,0.7059]
[1755263474179,2.62775172,4617.9,4616.5,2.16611928]
[1755263474346,0.55,4617.8,4616.5,2.62261928]
[1755263474536,0.108,4616.6,4616.5,2.62261928]
[1755263474737,0.108,4616.8,4616.7,2.16604855]
[1755263474973,0.13055044,4618.3,4617.4,2.16571244]
[1755263475183,0.13055044,4618.3,4616.8,1.20970688]
[1755263475392,0.13055044,4618.3,4617.8,2.16549688]
[1755263475548,0.13055044,4618.3,4617.1,5.59585868]
[1755263475742,0.13055044,4618.3,4617.2,0.7059]
[1755263475977,0.13055044,4618.3,4618.0,2.16543958]
[1755263476181,0.13055044,4618.3,4618.2,2.1653458]
[1755263476351,0.13055044,4618.3,4618.2,2.29499925]
[1755263476536,0.13055044,4618.3,4618.2,2.9792458]
[1755263477235,0.13055044,4618.3,4618.1,0.21654396]
[1755263477439,0.13055044,4618.3,4617.4,2.16572096]
[1755263477691,0.108,4618.0,4617.4,0.108]
[1755263477848,0.108,4617.7,4617.3,0.4565]
[1755263478053,0.108,4617.7,4617.4,0.4565]
[1755263478272,2.59985741,4617.6,4616.1,0.041]
[1755263478455,2.16613811,4616.6,4616.5,0.001]
[1755263478844,0.4342,4616.6,4616.5,0.001]
[1755263479038,2.16609626,4616.6,4616.5,0.001]
[1755263479245,2.71609626,4616.6,4616.5,0.001]
[1755263479482,6.63469626,4616.6,4616.5,0.001]
[1755263479674,7.51476812,4616.6,4616.5,0.001]
[1755263481261,7.03036812,4616.6,4616.5,0.001]
[1755263481580,2.16609626,4616.6,4616.5,0.001]
[1755263484771,3.63469626,4616.6,4616.5,0.001]
[1755263485624,6.63469626,4616.6,4616.5,0.001]
[1755263485822,6.15029626,4616.6,4616.5,0.001]
[1755263486598,6.63469626,4616.6,4616.5,0.001]
[1755263488219,5.27409626,4616.6,4616.5,0.001]
[1755263488402,6.74269626,4616.6,4616.5,0.001]
[1755263490001,7.20481825,4616.6,4616.5,0.001]
[1755263491794,11.20481825,4616.6,4616.5,0.001]
[1755263492037,2.16628395,4616.2,4616.1,0.041]
[1755263492252,10.05453392,4616.2,4616.1,0.041]
[1755263492526,11.43525591,4616.2,4616.1,0.041]
[1755263493539,12.01287127,4616.2,4616.1,0.041]
[1755263494035,11.09427127,4616.2,4616.1,0.041]
[1755263494236,10.95085591,4616.2,4616.1,0.041]
[1755263494421,11.43525591,4616.2,4616.1,0.041]
[1755263494624,10.51665591,4616.2,4616.1,0.041]
[1755263495024,10.95085591,4616.2,4616.1,0.041]
[1755263495237,11.43525591,4616.2,4616.1,0.041]
[1755263495749,7.50885591,4616.2,4616.1,0.041]
[1755263495905,10.51665591,4616.2,4616.1,0.041]
[1755263496248,18.46605591,4616.2,4616.1,0.041]
[1755263496946,18.00435591,4616.2,4616.1,0.041]
[1755263497168,5.71633088,4616.1,4615.1,0.04]
[1755263497443,5.82475333,4615.2,4615.1,0.04]
[1755263497753,9.26875333,4615.2,4615.1,0.04]
[1755263498076,10.64027532,4615.2,4615.1,0.04]
[1755263498630,10.63827532,4615.2,4615.1,0.04]
[1755263498811,11.21680131,4615.2,4615.1,0.04]
[1755263499008,11.58496871,4615.2,4615.1,0.04]
[1755263499255,12.16285937,4615.2,4615.1,0.04]
[1755263499552,5.70877196,4615.2,4614.1,0.04]
[1755263499844,0.108,4614.2,4614.1,0.04]
[1755263500313,2.27522292,4614.2,4614.1,0.04]
[1755263500706,3.22377437,4614.2,4614.1,0.04]
[1755263501035,5.82522292,4614.2,4614.1,0.04]
[1755263501235,9.26922292,4614.2,4614.1,0.04]
[1755263501754,9.71692292,4614.2,4614.1,0.04]
[1755263501905,10.17862292,4614.2,4614.1,0.04]
[1755263502958,10.17862292,4614.2,4614.1,1e-08]
[1755263503099,0.55,4614.0,4611.1,0.04]
[1755263503304,0.108,4613.2,4612.0,0.4592]
[1755263503550,0.46221313,4613.8,4612.2,0.73028162]
[1755263503742,0.108,4613.3,4612.6,0.108]
[1755263503902,0.108,4613.3,4612.7,0.7086]
[1755263504320,0.108,4613.3,4612.7,2.87648523]
[1755263504504,0.108,4613.3,4612.8,2.16787383]
[1755263504739,0.108,4613.3,4612.7,0.7086]
[1755263504903,2.16736383,4613.9,4612.7,0.7086]
[1755263505099,0.55,4613.7,4612.7,0.4592]
[1755263505305,3.45,4613.8,4612.8,0.2710788]
[1755263505516,0.41119999,4614.9,4612.8,0.2494]
[1755263505747,2.16699963,4614.7,4613.4,2.16759585]
[1755263505944,0.108,4613.8,4613.5,0.4592]
[1755263506107,0.108,4614.1,4614.0,2.16731686]
[1755263506314,0.41119999,4614.9,4614.1,0.108]
[1755263506315,0.108,4614.8,4614.1,0.108]
[1755263506509,0.108,4614.8,4614.7,2.1669881]
[1755263506834,0.108,4614.8,4614.7,0.7086]
[1755263507319,0.41119999,4614.9,4614.7,0.99616316]
[1755263507521,0.41119999,4614.9,4614.8,0.7086]
[1755263508042,0.41119999,4614.9,4614.8,0.4592]
[1755263508756,0.51919999,4614.9,4614.8,2.62614114]
[1755263508912,0.41119999,4614.9,4614.8,2.87554114]
[1755263509271,0.04,4615.9,4615.3,2.16670638]
[1755263509457,0.04,4615.9,4615.6,2.16654717]
[1755263509618,0.04,4615.9,4615.2,0.7086]
[1755263509813,0.04,4615.9,4615.8,2.27447168]
[1755263510155,0.04,4615.9,4615.8,2.71857355]
[1755263510457,0.04,4615.9,4615.8,6.42717355]
[1755263511493,0.04,4615.9,4615.8,1.26070187]
[1755263511621,0.04,4615.9,4615.8,0.108]
[1755263512125,0.04,4615.9,4615.3,0.108]
[1755263512460,0.148,4615.9,4615.3,0.108]
[1755263512923,2.31442727,4615.9,4615.3,0.108]
[1755263513123,0.148,4615.9,4615.3,0.108]
[1755263513324,0.148,4615.9,4615.8,0.001]
[1755263513756,2.76212474,4615.9,4615.8,0.001]
[1755263513961,1.08854761,4615.9,4615.8,0.001]
[1755263514266,2.31442474,4615.9,4615.8,0.001]
[1755263514564,3.22382474,4615.9,4615.8,0.001]
[1755263518031,7.23688536,4615.9,4615.8,0.001]
[1755263518472,6.22518536,4615.9,4615.8,0.001]
[1755263518778,7.61297843,4615.9,4615.8,0.001]
[1755263518919,3.55,4615.8,4614.1,0.108]
[1755263519124,3.55,4615.8,4614.2,0.02167222]
[1755263519125,0.108,4614.7,4614.2,0.02167222]
[1755263519434,0.108,4614.7,4614.3,0.02167175]
[1755263519757,0.108,4614.7,4614.1,0.108]
[1755263519961,2.16731351,4614.1,4613.0,0.4592]
[1755263520118,0.4477,4614.8,4613.2,0.39882]
[1755263520325,3.0,4614.5,4612.2,0.651109]
[1755263520523,0.46305254,4615.1,4612.1,3.536]
[1755263520524,0.57896165,4615.6,4613.3,4.33529142]
[1755263520727,0.34995405,4615.5,4614.6,2.16701544]
[1755263521077,0.04,4615.9,4614.7,0.02166988]
[1755263521078,0.5017,4615.9,4614.7,0.02166988]
[1755263521369,0.04,4615.9,4614.5,2.16703737]
[1755263521686,0.04,4615.9,4614.2,3.498]
[1755263521971,0.04,4615.9,4613.4,2.67598062]
[1755263521972,2.16703506,4614.6,4614.5,0.0008]
[1755263522268,2.38373857,4614.6,4614.5,0.0008]
[1755263522439,6.29313857,4614.6,4614.5,0.0008]
[1755263522761,0.55,4614.4,4612.2,0.7094]
[1755263522922,0.55,4614.4,4611.4,0.4592]
[1755263522923,2.16722292,4614.2,4611.4,0.4592]
[1755263523127,2.16747379,4613.7,4611.4,0.4592]
[1755263523326,2.16761436,4613.4,4612.0,0.65121]
[1755263523527,2.1676927,4613.2,4612.0,0.65121]